[Event "Early-Titled-Tuesday-Blitz-April-23-2024"]
[Site "Chess.com"]
[Date "2024.04.23"]
[Round "8"]
[White "ChessBliss09"]
[Black "EliteChess0967"]
[Result "0-1"]
[WhiteElo "2236"]
[BlackElo "2434"]
[TimeControl "180+1"]
[EndTime "9:32:09 PDT"]
[Termination "EliteChess0967 won on time"]

1. c4 {[%clk 0:03:00.9]} 1... c5 {[%clk 0:02:58.6]} 2. Nc3 {[%clk 0:03:01]} 2...
Nc6 {[%clk 0:02:58.9]} 3. Nf3 {[%clk 0:03:01.4]} 3... g6 {[%clk 0:02:59.4]} 4.
d4 {[%clk 0:03:01.5]} 4... cxd4 {[%clk 0:02:58.3]} 5. Nxd4 {[%clk 0:03:02.4]}
5... Bg7 {[%clk 0:02:58.7]} 6. Nxc6 {[%clk 0:03:03.1]} 6... bxc6 {[%clk
0:02:58.4]} 7. g3 {[%clk 0:03:03.7]} 7... e6 {[%clk 0:02:55.4]} 8. e4 {[%clk
0:03:01.6]} 8... Ne7 {[%clk 0:02:54]} 9. Bg2 {[%clk 0:03:01.9]} 9... O-O {[%clk
0:02:52.7]} 10. O-O {[%clk 0:03:02.5]} 10... d6 {[%clk 0:02:52]} 11. Qd3 {[%clk
0:02:59.2]} 11... Qc7 {[%clk 0:02:49.6]} 12. b3 {[%clk 0:02:59.6]} 12... e5
{[%clk 0:02:49.1]} 13. Bb2 {[%clk 0:02:59.5]} 13... Be6 {[%clk 0:02:46.8]} 14.
Rad1 {[%clk 0:02:59]} 14... Rfd8 {[%clk 0:02:46.3]} 15. Ba3 {[%clk 0:02:55.5]}
15... Nc8 {[%clk 0:02:11]} 16. c5 {[%clk 0:02:35.2]} 16... Bf8 {[%clk
0:02:10.2]} 17. cxd6 {[%clk 0:02:34.4]} 17... Nxd6 {[%clk 0:02:09.9]} 18. Qe3
{[%clk 0:02:18.9]} 18... Qa5 {[%clk 0:01:49.6]} 19. Na4 {[%clk 0:02:02.8]} 19...
Nc4 {[%clk 0:01:44.6]} 20. bxc4 {[%clk 0:01:56]} 20... Qxa4 {[%clk 0:01:44.7]}
21. Bxf8 {[%clk 0:01:52.7]} 21... Rxf8 {[%clk 0:01:44.8]} 22. Qc5 {[%clk
0:01:48.4]} 22... Bxc4 {[%clk 0:01:34.8]} 23. Rfe1 {[%clk 0:01:48.1]} 23... Qb5
{[%clk 0:01:34.8]} 24. Qe3 {[%clk 0:01:33.8]} 24... Be6 {[%clk 0:01:30.4]} 25.
Rb1 {[%clk 0:01:29.9]} 25... Qa4 {[%clk 0:01:28.1]} 26. Rec1 {[%clk 0:01:25.1]}
26... Qxa2 {[%clk 0:01:21.5]} 27. Qc5 {[%clk 0:01:22]} 27... Rab8 {[%clk
0:01:10.2]} 28. Rxb8 {[%clk 0:01:18.6]} 28... Rxb8 {[%clk 0:01:09.9]} 29. Qxe5
{[%clk 0:01:17.3]} 29... Rb1 {[%clk 0:01:08.4]} 30. Rf1 {[%clk 0:00:44.2]} 30...
Rxf1+ {[%clk 0:00:58]} 31. Bxf1 {[%clk 0:00:45.1]} 31... Qb3 {[%clk 0:00:57.7]}
32. Qd6 {[%clk 0:00:37.6]} 32... Qb6 {[%clk 0:00:52.4]} 33. h4 {[%clk
0:00:35.3]} 33... c5 {[%clk 0:00:49]} 34. Qe5 {[%clk 0:00:34.5]} 34... c4 {[%clk
0:00:46]} 35. h5 {[%clk 0:00:33.4]} 35... gxh5 {[%clk 0:00:36.1]} 36. Qxh5
{[%clk 0:00:27.3]} 36... Qd4 {[%clk 0:00:31.9]} 37. Qg5+ {[%clk 0:00:23.6]}
37... Kh8 {[%clk 0:00:32.2]} 38. Qf4 {[%clk 0:00:15.4]} 38... c3 {[%clk
0:00:28.6]} 39. Qb8+ {[%clk 0:00:09]} 39... Kg7 {[%clk 0:00:28.4]} 40. e5 {[%clk
0:00:08.2]} 40... c2 {[%clk 0:00:21.7]} 41. Qc7 {[%clk 0:00:08.7]} 41... Qb2
{[%clk 0:00:14.9]} 42. Qe7 {[%clk 0:00:08.6]} 42... Qxe5 {[%clk 0:00:14.7]} 0-1

[Event "Early-Titled-Tuesday-Blitz-April-23-2024"]
[Site "Chess.com"]
[Date "2024.04.23"]
[Round "8"]
[White "DarZay"]
[Black "LeoLV10"]
[Result "1-0"]
[WhiteElo "2331"]
[BlackElo "2488"]
[TimeControl "180+1"]
[EndTime "9:32:10 PDT"]
[Termination "DarZay won by resignation"]

1. e4 {[%clk 0:02:46.2]} 1... c5 {[%clk 0:02:59.5]} 2. Nf3 {[%clk 0:02:36]} 2...
d6 {[%clk 0:02:58.1]} 3. d4 {[%clk 0:02:35.2]} 3... cxd4 {[%clk 0:02:58]} 4.
Nxd4 {[%clk 0:02:35]} 4... Nf6 {[%clk 0:02:58.9]} 5. Nc3 {[%clk 0:02:34.7]} 5...
Nc6 {[%clk 0:02:59.8]} 6. Nxc6 {[%clk 0:02:34.5]} 6... bxc6 {[%clk 0:03:00.6]}
7. Bd3 {[%clk 0:02:34.4]} 7... g6 {[%clk 0:03:00.1]} 8. O-O {[%clk 0:02:34]}
8... Bg7 {[%clk 0:03:00.8]} 9. f4 {[%clk 0:02:33.8]} 9... O-O {[%clk 0:03:01.5]}
10. Be3 {[%clk 0:02:31.4]} 10... Bb7 {[%clk 0:02:57.4]} 11. f5 {[%clk 0:02:29]}
11... c5 {[%clk 0:02:56.6]} 12. Qf3 {[%clk 0:02:24.4]} 12... Rc8 {[%clk
0:02:51.6]} 13. fxg6 {[%clk 0:02:12.6]} 13... hxg6 {[%clk 0:02:34.6]} 14. Bc4
{[%clk 0:02:06.6]} 14... e6 {[%clk 0:02:31.6]} 15. Bg5 {[%clk 0:02:00.6]} 15...
d5 {[%clk 0:02:14.5]} 16. exd5 {[%clk 0:01:48.7]} 16... exd5 {[%clk 0:02:14.6]}
17. Nxd5 {[%clk 0:01:20.3]} 17... Bxd5 {[%clk 0:02:04.8]} 18. Bxd5 {[%clk
0:01:18]} 18... Qxd5 {[%clk 0:01:59.7]} 19. Bxf6 {[%clk 0:01:18.1]} 19... Qd6
{[%clk 0:01:55.8]} 20. Bxg7 {[%clk 0:01:17.3]} 20... Kxg7 {[%clk 0:01:56.7]} 21.
Rad1 {[%clk 0:01:15.8]} 21... Qb6 {[%clk 0:01:33.2]} 22. Qc3+ {[%clk 0:01:10.4]}
22... Kg8 {[%clk 0:01:23.5]} 23. Rf6 {[%clk 0:01:09]} 23... Qb4 {[%clk
0:01:11.1]} 24. Qe5 {[%clk 0:00:22.9]} 24... Rce8 {[%clk 0:00:46.9]} 25. Qd5
{[%clk 0:00:19.6]} 25... Re1+ {[%clk 0:00:46.3]} 26. Rf1 {[%clk 0:00:19.5]}
26... Re2 {[%clk 0:00:43.4]} 27. c3 {[%clk 0:00:10.1]} 27... Qxb2 {[%clk
0:00:42.1]} 28. Rd3 {[%clk 0:00:10.2]} 28... c4 {[%clk 0:00:39.4]} 29. Rg3
{[%clk 0:00:09.9]} 29... Qb6+ {[%clk 0:00:38.8]} 30. Kh1 {[%clk 0:00:09.5]}
30... Kg7 {[%clk 0:00:37.1]} 31. Qxc4 {[%clk 0:00:09.3]} 31... Rd2 {[%clk
0:00:36.1]} 32. Qf4 {[%clk 0:00:06.8]} 32... Qe6 {[%clk 0:00:34.2]} 33. Qxd2
{[%clk 0:00:06.2]} 33... Re8 {[%clk 0:00:34]} 34. Qd4+ {[%clk 0:00:06.5]} 34...
Kg8 {[%clk 0:00:33.9]} 35. Rh3 {[%clk 0:00:07.1]} 35... f6 {[%clk 0:00:31.9]}
36. Rhf3 {[%clk 0:00:07.3]} 36... f5 {[%clk 0:00:26.4]} 37. Rh3 {[%clk
0:00:07.5]} 37... Rf8 {[%clk 0:00:26.5]} 38. Qh8+ {[%clk 0:00:06.2]} 38... Kf7
{[%clk 0:00:27.4]} 39. Rh7+ {[%clk 0:00:06.3]} 39... Ke8 {[%clk 0:00:27.8]} 40.
Qg7 {[%clk 0:00:06.1]} 40... Rg8 {[%clk 0:00:22.7]} 41. Qxa7 {[%clk 0:00:05.8]}
41... Kf8 {[%clk 0:00:21.8]} 42. Qb8+ {[%clk 0:00:05.8]} 42... Qe8 {[%clk
0:00:21.8]} 43. Qxe8+ {[%clk 0:00:05.9]} 43... Kxe8 {[%clk 0:00:21.3]} 44. Rb1
{[%clk 0:00:05.3]} 44... Rg7 {[%clk 0:00:20.1]} 45. Rxg7 {[%clk 0:00:04.9]} 1-0

[Event "Early-Titled-Tuesday-Blitz-April-23-2024"]
[Site "Chess.com"]
[Date "2024.04.23"]
[Round "8"]
[White "BenchGM"]
[Black "shirovin"]
[Result "1/2-1/2"]
[WhiteElo "2242"]
[BlackElo "2057"]
[TimeControl "180+1"]
[EndTime "9:32:10 PDT"]
[Termination "Game drawn by repetition"]

1. e4 {[%clk 0:03:00.9]} 1... Nf6 {[%clk 0:02:59]} 2. e5 {[%clk 0:03:00.5]} 2...
Nd5 {[%clk 0:02:59.6]} 3. d4 {[%clk 0:02:55.9]} 3... d6 {[%clk 0:02:59.1]} 4. c4
{[%clk 0:02:56.2]} 4... Nb6 {[%clk 0:02:58.7]} 5. f4 {[%clk 0:02:56.5]} 5...
dxe5 {[%clk 0:02:52.9]} 6. fxe5 {[%clk 0:02:55.2]} 6... Bf5 {[%clk 0:02:53.1]}
7. Nc3 {[%clk 0:02:48.4]} 7... e6 {[%clk 0:02:52.8]} 8. Nf3 {[%clk 0:02:44.3]}
8... Nc6 {[%clk 0:02:51.5]} 9. Be3 {[%clk 0:02:38.8]} 9... Bb4 {[%clk
0:02:50.3]} 10. Qb3 {[%clk 0:02:30.2]} 10... a5 {[%clk 0:02:24.6]} 11. a4 {[%clk
0:02:22.1]} 11... O-O {[%clk 0:02:18.4]} 12. O-O-O {[%clk 0:02:21.8]} 12... Qe8
{[%clk 0:02:03]} 13. h3 {[%clk 0:02:08.6]} 13... Ne7 {[%clk 0:01:47]} 14. g4
{[%clk 0:02:05.6]} 14... Bg6 {[%clk 0:01:41.8]} 15. h4 {[%clk 0:01:59.6]} 15...
Bxc3 {[%clk 0:01:37.4]} 16. bxc3 {[%clk 0:01:50.9]} 16... Qxa4 {[%clk
0:01:33.6]} 17. Qxa4 {[%clk 0:01:43.5]} 17... Nxa4 {[%clk 0:01:32.8]} 18. Kd2
{[%clk 0:01:43.4]} 18... Be4 {[%clk 0:01:27.2]} 19. Rh3 {[%clk 0:01:39]} 19...
Rfd8 {[%clk 0:01:16.7]} 20. Ng5 {[%clk 0:01:28.4]} 20... Bc6 {[%clk 0:01:12.2]}
21. Bd3 {[%clk 0:01:24.4]} 21... h6 {[%clk 0:01:09.1]} 22. Ne4 {[%clk
0:01:20.3]} 22... Nb6 {[%clk 0:01:03.3]} 23. Nc5 {[%clk 0:01:06.6]} 23... a4
{[%clk 0:00:58.6]} 24. g5 {[%clk 0:01:04.3]} 24... Nf5 {[%clk 0:00:53.2]} 25.
gxh6 {[%clk 0:00:39.4]} 25... Nxh6 {[%clk 0:00:47.4]} 26. Rg1 {[%clk 0:00:34.3]}
26... Kf8 {[%clk 0:00:39.3]} 27. Rhg3 {[%clk 0:00:31.6]} 27... Nf5 {[%clk
0:00:19]} 28. Bxf5 {[%clk 0:00:31.1]} 28... exf5 {[%clk 0:00:18.3]} 29. Rxg7
{[%clk 0:00:31.3]} 29... Nxc4+ {[%clk 0:00:17.7]} 30. Kd3 {[%clk 0:00:26.2]}
30... Nxe5+ {[%clk 0:00:16.8]} 31. Kc2 {[%clk 0:00:23.3]} 31... Ng4 {[%clk
0:00:16.3]} 32. Bh6 {[%clk 0:00:09.6]} 32... Nxh6 {[%clk 0:00:14.7]} 33. Rh7
{[%clk 0:00:09.7]} 33... Ng4 {[%clk 0:00:13.7]} 34. Rf1 {[%clk 0:00:06.7]} 34...
Bd7 {[%clk 0:00:07.2]} 35. Ne4 {[%clk 0:00:04.9]} 35... fxe4 {[%clk 0:00:05.7]}
36. Rfxf7+ {[%clk 0:00:04.5]} 36... Ke8 {[%clk 0:00:06.1]} 37. Re7+ {[%clk
0:00:03.9]} 37... Kf8 {[%clk 0:00:05.9]} 38. Ref7+ {[%clk 0:00:04.3]} 38... Ke8
{[%clk 0:00:05.6]} 39. Rfg7 {[%clk 0:00:04.7]} 39... Kf8 {[%clk 0:00:05.5]} 40.
Rf7+ {[%clk 0:00:04.8]} 1/2-1/2

[Event "Early-Titled-Tuesday-Blitz-April-23-2024"]
[Site "Chess.com"]
[Date "2024.04.23"]
[Round "8"]
[White "DrVelja"]
[Black "jakopogi"]
[Result "1-0"]
[WhiteElo "2991"]
[BlackElo "2796"]
[TimeControl "180+1"]
[EndTime "9:32:14 PDT"]
[Termination "DrVelja won by checkmate"]

1. e4 {[%clk 0:03:00.9]} 1... e5 {[%clk 0:02:43.9]} 2. Nf3 {[%clk 0:03:01.4]}
2... Nc6 {[%clk 0:02:42.6]} 3. Bb5 {[%clk 0:03:02.1]} 3... a6 {[%clk 0:02:42]}
4. Ba4 {[%clk 0:03:02.8]} 4... Nf6 {[%clk 0:02:40.2]} 5. O-O {[%clk 0:03:03.4]}
5... b5 {[%clk 0:02:39.7]} 6. Bb3 {[%clk 0:03:03.3]} 6... Bc5 {[%clk 0:02:39.4]}
7. a4 {[%clk 0:03:01.7]} 7... Bb7 {[%clk 0:02:39.5]} 8. d3 {[%clk 0:03:01.1]}
8... h6 {[%clk 0:02:39.2]} 9. Be3 {[%clk 0:03:00.3]} 9... d6 {[%clk 0:02:38.4]}
10. Bxc5 {[%clk 0:02:54.6]} 10... dxc5 {[%clk 0:02:39.3]} 11. Nc3 {[%clk
0:02:55.1]} 11... b4 {[%clk 0:02:27.6]} 12. Nb1 {[%clk 0:02:51.6]} 12... O-O
{[%clk 0:02:19.9]} 13. Nbd2 {[%clk 0:02:50.4]} 13... Re8 {[%clk 0:02:20.1]} 14.
a5 {[%clk 0:02:48.9]} 14... Nd4 {[%clk 0:02:17.9]} 15. Bc4 {[%clk 0:02:44.2]}
15... Bc8 {[%clk 0:02:08.6]} 16. Nxd4 {[%clk 0:02:38.2]} 16... cxd4 {[%clk
0:02:07.8]} 17. h3 {[%clk 0:02:31.8]} 17... Qd6 {[%clk 0:01:58.8]} 18. Qe2
{[%clk 0:02:23.4]} 18... Bd7 {[%clk 0:01:43]} 19. Rae1 {[%clk 0:02:18.5]} 19...
g5 {[%clk 0:01:42.3]} 20. Bb3 {[%clk 0:01:55]} 20... Kg7 {[%clk 0:01:41.1]} 21.
Nc4 {[%clk 0:01:53.4]} 21... Qc5 {[%clk 0:01:41.5]} 22. h4 {[%clk 0:01:51.5]}
22... Bg4 {[%clk 0:01:37]} 23. Qd2 {[%clk 0:01:50.4]} 23... Kg6 {[%clk
0:01:33.4]} 24. f3 {[%clk 0:01:46.6]} 24... Be6 {[%clk 0:01:33.4]} 25. g3 {[%clk
0:01:33.7]} 25... Bxc4 {[%clk 0:01:32.1]} 26. Bxc4 {[%clk 0:01:33.5]} 26... Nh5
{[%clk 0:01:28.8]} 27. Qh2 {[%clk 0:01:30.3]} 27... Rg8 {[%clk 0:01:17.4]} 28.
hxg5 {[%clk 0:01:16.7]} 28... hxg5 {[%clk 0:01:10.4]} 29. Bxf7+ {[%clk
0:01:15.5]} 29... Kxf7 {[%clk 0:01:10.5]} 30. Qxh5+ {[%clk 0:01:16.2]} 30... Rg6
{[%clk 0:01:10.7]} 31. Qh7+ {[%clk 0:01:15.4]} 31... Rg7 {[%clk 0:01:10.2]} 32.
Qf5+ {[%clk 0:01:14.5]} 32... Ke7 {[%clk 0:01:10.6]} 33. Re2 {[%clk 0:01:05.9]}
33... Rf8 {[%clk 0:01:10.3]} 34. Qg4 {[%clk 0:01:04.4]} 34... Rff7 {[%clk
0:01:08.4]} 35. Rh2 {[%clk 0:01:03.7]} 35... b3 {[%clk 0:01:07.5]} 36. cxb3
{[%clk 0:01:02.7]} 36... Qb5 {[%clk 0:01:07.7]} 37. Rc1 {[%clk 0:00:58.3]} 37...
Qxd3 {[%clk 0:01:07.7]} 38. Rxc7+ {[%clk 0:00:57.6]} 38... Kd6 {[%clk
0:01:08.3]} 39. Rxf7 {[%clk 0:00:34.6]} 39... Qd1+ {[%clk 0:01:08.2]} 40. Kg2
{[%clk 0:00:34.1]} 40... Qe2+ {[%clk 0:01:08.2]} 41. Kg1 {[%clk 0:00:23.8]}
41... Qe1+ {[%clk 0:01:05.8]} 42. Kg2 {[%clk 0:00:24.7]} 42... Rxf7 {[%clk
0:00:59.3]} 43. Qc8 {[%clk 0:00:05.8]} 43... Qe2+ {[%clk 0:00:54]} 44. Kg1
{[%clk 0:00:04]} 44... Qe3+ {[%clk 0:00:34.3]} 45. Rf2 {[%clk 0:00:03.9]} 45...
Rxf3 {[%clk 0:00:34.6]} 46. Qd8+ {[%clk 0:00:04.2]} 46... Kc6 {[%clk 0:00:30.2]}
47. Qc8+ {[%clk 0:00:04.8]} 47... Kb5 {[%clk 0:00:28.5]} 48. Qc4+ {[%clk
0:00:05]} 48... Kxa5 {[%clk 0:00:28.9]} 49. Qc5# {[%clk 0:00:05.9]} 1-0

[Event "Early-Titled-Tuesday-Blitz-April-23-2024"]
[Site "Chess.com"]
[Date "2024.04.23"]
[Round "8"]
[White "superchess02"]
[Black "Kildepiotr"]
[Result "1/2-1/2"]
[WhiteElo "2889"]
[BlackElo "2726"]
[TimeControl "180+1"]
[EndTime "9:32:16 PDT"]
[Termination "Game drawn by repetition"]

1. d4 {[%clk 0:03:00.9]} 1... Nf6 {[%clk 0:02:55.2]} 2. c4 {[%clk 0:03:01.5]}
2... e6 {[%clk 0:02:55.7]} 3. Nc3 {[%clk 0:03:01.5]} 3... d5 {[%clk 0:02:53.9]}
4. Bg5 {[%clk 0:03:00.8]} 4... Be7 {[%clk 0:02:51.4]} 5. e3 {[%clk 0:03:01.1]}
5... O-O {[%clk 0:02:51.1]} 6. Nf3 {[%clk 0:03:01.1]} 6... h6 {[%clk 0:02:50.8]}
7. Bh4 {[%clk 0:03:01.4]} 7... b6 {[%clk 0:02:48]} 8. Qb3 {[%clk 0:02:59.9]}
8... Bb7 {[%clk 0:02:45.4]} 9. Bxf6 {[%clk 0:02:59.8]} 9... Bxf6 {[%clk
0:02:45.4]} 10. cxd5 {[%clk 0:03:00.1]} 10... exd5 {[%clk 0:02:45.3]} 11. Rd1
{[%clk 0:02:59.8]} 11... a6 {[%clk 0:02:39.6]} 12. Bd3 {[%clk 0:02:53.6]} 12...
Qd6 {[%clk 0:02:39.2]} 13. O-O {[%clk 0:02:48.4]} 13... Re8 {[%clk 0:02:34.9]}
14. Rfe1 {[%clk 0:02:41.8]} 14... Nd7 {[%clk 0:02:34.6]} 15. a3 {[%clk
0:02:37.2]} 15... c5 {[%clk 0:02:27.7]} 16. Bb1 {[%clk 0:02:12.3]} 16... Rad8
{[%clk 0:02:19.9]} 17. dxc5 {[%clk 0:02:04.7]} 17... Nxc5 {[%clk 0:02:19.2]} 18.
Qc2 {[%clk 0:02:05.1]} 18... Qb8 {[%clk 0:02:12]} 19. Qh7+ {[%clk 0:01:56.8]}
19... Kf8 {[%clk 0:02:12.1]} 20. Nd4 {[%clk 0:01:48.9]} 20... g6 {[%clk
0:01:40.4]} 21. Qxh6+ {[%clk 0:01:05.4]} 21... Ke7 {[%clk 0:01:40.1]} 22. h3
{[%clk 0:00:48.4]} 22... Rh8 {[%clk 0:01:39.4]} 23. Qf4 {[%clk 0:00:48.4]} 23...
Qxf4 {[%clk 0:01:39.5]} 24. exf4+ {[%clk 0:00:49.3]} 24... Kd6 {[%clk
0:01:35.2]} 25. Nf3 {[%clk 0:00:46.7]} 25... Rhe8 {[%clk 0:01:32]} 26. Rxe8
{[%clk 0:00:44]} 26... Rxe8 {[%clk 0:01:32.8]} 27. Nxd5 {[%clk 0:00:32.7]} 27...
Bxd5 {[%clk 0:01:32.5]} 28. Ba2 {[%clk 0:00:32.1]} 28... Bxb2 {[%clk 0:01:32]}
29. Bxd5 {[%clk 0:00:32]} 29... Ke7 {[%clk 0:01:29.8]} 30. Ng5 {[%clk
0:00:27.9]} 30... Ne6 {[%clk 0:01:12.2]} 31. Bxe6 {[%clk 0:00:23]} 31... fxe6
{[%clk 0:01:13.1]} 32. a4 {[%clk 0:00:20.9]} 32... Rc8 {[%clk 0:01:09.1]} 33.
Re1 {[%clk 0:00:19]} 33... Rc1 {[%clk 0:01:08.9]} 34. Rxc1 {[%clk 0:00:18.5]}
34... Bxc1 {[%clk 0:01:09.8]} 35. g3 {[%clk 0:00:19.1]} 35... b5 {[%clk
0:01:08]} 36. axb5 {[%clk 0:00:20]} 36... axb5 {[%clk 0:01:08.9]} 37. Kf1 {[%clk
0:00:19.8]} 37... e5 {[%clk 0:01:07.2]} 38. Ke2 {[%clk 0:00:16.1]} 38... exf4
{[%clk 0:01:07.1]} 39. g4 {[%clk 0:00:16.3]} 39... Kd6 {[%clk 0:00:59.9]} 40.
Kd3 {[%clk 0:00:15.6]} 40... Kd5 {[%clk 0:00:58.9]} 41. Nf3 {[%clk 0:00:11.3]}
41... b4 {[%clk 0:00:56]} 42. Nd4 {[%clk 0:00:10.9]} 42... Bb2 {[%clk
0:00:54.8]} 43. Nb3 {[%clk 0:00:10.6]} 43... g5 {[%clk 0:00:54.1]} 44. Nd2
{[%clk 0:00:10.5]} 44... Bf6 {[%clk 0:00:52.1]} 45. Ne4 {[%clk 0:00:10.5]} 45...
Be7 {[%clk 0:00:52.6]} 46. Nd2 {[%clk 0:00:10.9]} 46... Bf6 {[%clk 0:00:52.6]}
47. f3 {[%clk 0:00:11]} 47... Bd8 {[%clk 0:00:49.5]} 48. Ne4 {[%clk 0:00:10]}
48... Be7 {[%clk 0:00:49.6]} 49. Nd2 {[%clk 0:00:09.6]} 49... Bd8 {[%clk
0:00:47.2]} 50. Nb3 {[%clk 0:00:10.1]} 50... Bb6 {[%clk 0:00:45.1]} 51. Nd2
{[%clk 0:00:09.8]} 51... Bc5 {[%clk 0:00:40.5]} 52. Ne4 {[%clk 0:00:09.7]} 52...
Be7 {[%clk 0:00:39.2]} 53. Nd2 {[%clk 0:00:08.3]} 53... Bd8 {[%clk 0:00:37.2]}
1/2-1/2

[Event "Early-Titled-Tuesday-Blitz-April-23-2024"]
[Site "Chess.com"]
[Date "2024.04.23"]
[Round "8"]
[White "Unkreativ3"]
[Black "kai_nov"]
[Result "1-0"]
[WhiteElo "2580"]
[BlackElo "2262"]
[TimeControl "180+1"]
[EndTime "9:32:17 PDT"]
[Termination "Unkreativ3 won by checkmate"]

1. e4 {[%clk 0:03:00.9]} 1... c5 {[%clk 0:02:51.9]} 2. Nf3 {[%clk 0:03:00.8]}
2... Nc6 {[%clk 0:02:51.5]} 3. c3 {[%clk 0:03:00.1]} 3... e5 {[%clk 0:02:49.4]}
4. Bc4 {[%clk 0:02:55.3]} 4... Be7 {[%clk 0:02:48]} 5. O-O {[%clk 0:02:52.4]}
5... Nf6 {[%clk 0:02:47.3]} 6. d4 {[%clk 0:02:48.8]} 6... cxd4 {[%clk 0:02:46]}
7. cxd4 {[%clk 0:02:48.6]} 7... exd4 {[%clk 0:02:32.5]} 8. e5 {[%clk 0:02:29.2]}
8... Ng4 {[%clk 0:02:30.1]} 9. Bf4 {[%clk 0:02:16.9]} 9... Qb6 {[%clk
0:02:22.7]} 10. h3 {[%clk 0:02:01.6]} 10... Qxb2 {[%clk 0:02:12.5]} 11. Nbd2
{[%clk 0:01:44.1]} 11... Nh6 {[%clk 0:02:01.3]} 12. Bxh6 {[%clk 0:01:43.1]}
12... gxh6 {[%clk 0:02:00]} 13. Rb1 {[%clk 0:01:43]} 13... Qc3 {[%clk 0:01:53]}
14. Rb3 {[%clk 0:01:29.9]} 14... Qa5 {[%clk 0:01:51]} 15. Rb5 {[%clk 0:01:29.9]}
15... Qc3 {[%clk 0:01:47.9]} 16. Rb3 {[%clk 0:01:22.3]} 16... Qa5 {[%clk
0:01:47]} 17. Re1 {[%clk 0:01:15.6]} 17... Bb4 {[%clk 0:01:39.3]} 18. Re4 {[%clk
0:01:06]} 18... Bxd2 {[%clk 0:01:26.1]} 19. Nxd2 {[%clk 0:01:06.9]} 19... b6
{[%clk 0:01:22.6]} 20. Bxf7+ {[%clk 0:00:53.8]} 20... Kxf7 {[%clk 0:01:16.8]}
21. Qh5+ {[%clk 0:00:50.2]} 21... Ke7 {[%clk 0:01:14.3]} 22. Qh4+ {[%clk
0:00:42]} 22... Ke8 {[%clk 0:01:04.1]} 23. Nc4 {[%clk 0:00:41.7]} 23... d5
{[%clk 0:00:21.2]} 24. exd6+ {[%clk 0:00:38.4]} 24... Kd7 {[%clk 0:00:19.5]} 25.
Nxa5 {[%clk 0:00:28]} 25... Nxa5 {[%clk 0:00:18.8]} 26. Qe7+ {[%clk 0:00:22.1]}
26... Kc6 {[%clk 0:00:17.5]} 27. Qc7+ {[%clk 0:00:19.5]} 27... Kd5 {[%clk
0:00:15.3]} 28. Rb5+ {[%clk 0:00:11.4]} 28... Kxe4 {[%clk 0:00:14.2]} 29. Qe7+
{[%clk 0:00:11.5]} 29... Kd3 {[%clk 0:00:14.2]} 30. d7 {[%clk 0:00:09.9]} 30...
Ba6 {[%clk 0:00:10.7]} 31. Rd5 {[%clk 0:00:08.5]} 31... Bc4 {[%clk 0:00:09.1]}
32. d8=Q {[%clk 0:00:06.8]} 32... Bxd5 {[%clk 0:00:08.4]} 33. Qxd5 {[%clk
0:00:05.8]} 33... Rac8 {[%clk 0:00:07.8]} 34. Qee4+ {[%clk 0:00:05.8]} 34... Kd2
{[%clk 0:00:07.2]} 35. Qdxd4+ {[%clk 0:00:06.1]} 35... Kc1 {[%clk 0:00:07.6]}
36. Qe1+ {[%clk 0:00:05.5]} 36... Kc2 {[%clk 0:00:07.5]} 37. Qed1# {[%clk
0:00:06.4]} 1-0

[Event "Early-Titled-Tuesday-Blitz-April-23-2024"]
[Site "Chess.com"]
[Date "2024.04.23"]
[Round "8"]
[White "Bilan_Danila"]
[Black "Korchmar_Vasiliy"]
[Result "0-1"]
[WhiteElo "2547"]
[BlackElo "2709"]
[TimeControl "180+1"]
[EndTime "9:32:18 PDT"]
[Termination "Korchmar_Vasiliy won by resignation"]

1. d4 {[%clk 0:03:00.9]} 1... Nf6 {[%clk 0:02:58.9]} 2. Nf3 {[%clk 0:03:01.2]}
2... g6 {[%clk 0:02:58.5]} 3. Bg5 {[%clk 0:03:00.8]} 3... c5 {[%clk 0:02:53.7]}
4. c3 {[%clk 0:02:59.6]} 4... Bg7 {[%clk 0:02:49]} 5. e3 {[%clk 0:02:58.7]} 5...
O-O {[%clk 0:02:48.4]} 6. Nbd2 {[%clk 0:02:59.4]} 6... cxd4 {[%clk 0:02:45.3]}
7. exd4 {[%clk 0:02:57.5]} 7... d6 {[%clk 0:02:44.1]} 8. Bc4 {[%clk 0:02:53.6]}
8... Nc6 {[%clk 0:02:42.9]} 9. O-O {[%clk 0:02:52.8]} 9... h6 {[%clk 0:02:42.9]}
10. Bh4 {[%clk 0:02:52.8]} 10... g5 {[%clk 0:02:43.4]} 11. Bg3 {[%clk
0:02:52.9]} 11... Nh5 {[%clk 0:02:44]} 12. Re1 {[%clk 0:02:31.2]} 12... Bf5
{[%clk 0:02:33.5]} 13. Nf1 {[%clk 0:02:06.5]} 13... Bg6 {[%clk 0:02:27.3]} 14.
Ne3 {[%clk 0:02:01.7]} 14... Nxg3 {[%clk 0:01:55]} 15. hxg3 {[%clk 0:02:00.1]}
15... e5 {[%clk 0:01:46.5]} 16. dxe5 {[%clk 0:01:51.7]} 16... dxe5 {[%clk
0:01:47.4]} 17. g4 {[%clk 0:01:29]} 17... e4 {[%clk 0:01:40]} 18. Nh2 {[%clk
0:01:23.4]} 18... Ne5 {[%clk 0:01:39.1]} 19. Bd5 {[%clk 0:01:13.4]} 19... Nd3
{[%clk 0:01:38]} 20. Re2 {[%clk 0:01:10.2]} 20... Qb6 {[%clk 0:01:24.3]} 21. Qb3
{[%clk 0:01:04.1]} 21... Qc5 {[%clk 0:01:05]} 22. Nhf1 {[%clk 0:00:56]} 22...
Be5 {[%clk 0:00:55.7]} 23. Nf5 {[%clk 0:00:50.8]} 23... Bxf5 {[%clk 0:00:51.4]}
24. gxf5 {[%clk 0:00:51.7]} 24... Nf4 {[%clk 0:00:19.2]} 25. Rxe4 {[%clk
0:00:33.7]} 25... Bc7 {[%clk 0:00:07.9]} 26. Ne3 {[%clk 0:00:21.6]} 26... Bb6
{[%clk 0:00:05.5]} 27. g3 {[%clk 0:00:14]} 27... Nxd5 {[%clk 0:00:04.3]} 28.
Qxd5 {[%clk 0:00:12.8]} 28... Rad8 {[%clk 0:00:03.8]} 29. Qxc5 {[%clk
0:00:11.2]} 29... Bxc5 {[%clk 0:00:04.7]} 30. Rd1 {[%clk 0:00:05.1]} 30... b5
{[%clk 0:00:03.5]} 31. Nd5 {[%clk 0:00:04.6]} 31... Kg7 {[%clk 0:00:03.1]} 32.
b3 {[%clk 0:00:04.7]} 32... Rd6 {[%clk 0:00:03.1]} 33. c4 {[%clk 0:00:04]} 33...
bxc4 {[%clk 0:00:04]} 34. bxc4 {[%clk 0:00:04.9]} 34... Rfd8 {[%clk 0:00:04.4]}
35. Kg2 {[%clk 0:00:05.3]} 35... Ra6 {[%clk 0:00:03.7]} 36. Rd2 {[%clk 0:00:04]}
36... Ra4 {[%clk 0:00:04.1]} 37. f6+ {[%clk 0:00:04.2]} 37... Kh7 {[%clk
0:00:03.6]} 38. Ne7 {[%clk 0:00:04.4]} 38... Rxd2 {[%clk 0:00:03.4]} 39. Nf5
{[%clk 0:00:04.8]} 39... Rxf2+ {[%clk 0:00:03.4]} 40. Kh3 {[%clk 0:00:05.3]}
40... Rxf5 {[%clk 0:00:04.3]} 0-1